[Event "15th Chennai GM Open 2025"]
[Site "Chennai"]
[Date "2025.01.05"]
[Round "5.6"]
[White "Patil Priyanshu"]
[Black "Mayank Chakraborty"]
[Result "1/2-1/2"]
[ECO "C54"]
[WhiteElo "2298"]
[BlackElo "2457"]
[Annotator "TA"]
[PlyCount "63"]
[EventDate "2025.01.02"]
[EventType "swiss"]
[EventCountry "IND"]
[SourceTitle "playchess.com"]
[Source "ChessBase"]
[SourceQuality "1"]
[TimeControl "5400+30"]

{[%evp 10,63,11,11,8,11,19,17,19,9,16,0,-8,-13,0,-20,-20,-27,0,-100,-67,-56,-58,-109,-111,-148,142,131,125,120,134,110,145,112,121,85,87,25,144,142,154,0,0,0,0,0,0,0,0,0,0,0,0,0,0,0]} 1. e4 {[%emt 0:00:03]} e5 {[%emt 0:00:42]} 2. Nf3 {[%emt 0:00:07]} Nc6 {[%emt 0:00:07]} 3. Bc4 {[%emt 0:00:03]} Nf6 {[%emt 0:00:05]} 4. d3 {[%emt 0:00:04]} Bc5 {[%emt 0:00:04]} 5. c3 {[%emt 0:00:17]} d6 {[%emt 0:00:05]} 6. O-O {[%emt 0:00:08]} (6. b4 $5 Bb6 $8 7. Bb3 $11) 6... a5 {[%emt 0:00:04]} 7. Re1 {[%emt 0:01:10]} Ba7 {[%emt 0:00:14]} 8. Na3 {[%emt 0:04:52]} O-O {[%emt 0:00:37]} 9. Nb5 {[%emt 0:01:04]} Bb6 {[%emt 0:00:05]} 10. Bb3 {[%emt 0:07:47]} Ne7 {[%emt 0:08:16][%cal Bc6e7,Be7g6,Bg6h4,Bh4f3][%mdl 32]} 11. d4 {[%emt 0:11:35]} Ng6 {[%emt 0:02:31]} 12. dxe5 {[%emt 0:12:31]} Ng4 {[%emt 0:05:09]} 13. Re2 {[%emt 0:05:54][%cal Re5d6]} Nh4 {[%emt 0:10:16][%mdl 1024] ...Nxf3+ would now be deadly. Black has compensation.} 14. Qd3 {[%emt 0:03:07]} (14. Nbd4 $1 $11 Nxe5 15. Nxh4 Qxh4 16. Qd2) 14... a4 {[%emt 0:07:25]} (14... Nxe5 $2 15. Nxe5 dxe5 16. Qxd8 Rxd8 17. Bg5 $18) 15. Bc2 {[%emt 0:01:01][%cal Re5d6]} c6 {[%emt 0:21:25] Threatens to win with ...Nxf3+.} (15... Nxe5 16. Nxe5 dxe5 17. Qxd8 Rxd8 18. Bg5 $16) 16. Na3 {[%emt 0:10:03]} (16. Nxd6 $2 Nxf3+ 17. Qxf3 Nxe5 $19) (16. Nbd4 $15 Nxe5 17. Nxe5 dxe5 18. Nf5) 16... f5 $17 {[%emt 0:01:46]} (16... Nxe5 17. Nxe5 dxe5 18. Qxd8 Bxd8 19. Nc4 $17) (16... dxe5 17. Qxd8 Bxd8 18. Nxh4 Bxh4 19. h3 $16) 17. exd6 {[%emt 0:13:37]} (17. Qxd6 $2 Nxf3+ 18. gxf3 Qh4 19. fxg4 Qxg4+ 20. Kf1 Qf3 $19) 17... Nxf2 $2 {[%emt 0:17:16][%mdl 8192]} (17... Nxf3+ $17 18. Qxf3 fxe4 (18... Qxd6 $2 19. Bf4 $16) 19. Qxe4 Qh4) 18. Rxf2 $16 {[%emt 0:09:16]} Nxf3+ {[%emt 0:00:32]} 19. gxf3 {[%emt 0:00:14] Strongly threatening Be3.} (19. Qxf3 $2 fxe4 (19... Bxf2+ $2 20. Qxf2 fxe4 21. Qd4 $18) 20. Qxe4 Bxf2+ (20... Rxf2 21. Qxh7+ Kf7 22. Qh5+ Kg8 23. Qh7+ Kf7 24. Qh5+ Kg8 25. Qh7+ $11) 21. Kh1 Bf5 $19 (21... Qxd6 $2 22. Qxh7+ Kf7 23. Qh5+ Ke7 24. Bg5+ Kd7 25. Rd1 $18)) 19... fxe4 {[%emt 0:07:03]} 20. Qxe4 {[%emt 0:01:28]} Bf5 {[%emt 0:00:42]} 21. Qe7 {[%emt 0:01:59] Black must now prevent Be3.} (21. Qc4+ $6 Kh8 $16) 21... Bxf2+ {[%emt 0:03:46]} 22. Kxf2 {[%emt 0:00:08]} Qa5 {[%emt 0:01:22]} (22... Bxc2 23. Qxd8 (23. Nxc2 Qa5 $16) 23... Raxd8 24. Nxc2 $14) 23. d7 {[%emt 0:06:19] Against Rae8} (23. Qxb7 $2 Bxc2 24. Nxc2 Qh5 $19) (23. Qg5 $16) 23... Bxc2 {[%emt 0:00:52] Black is weak on the dark squares} (23... Bxd7 $1 $11 24. Qh4 (24. Qxd7 Qh5 $11) 24... Bf5) 24. Nxc2 {[%emt 0:01:24]} Qh5 {[%emt 0:00:27] [#] Prevents Bh6} 25. Bf4 $2 {[%emt 0:01:27]} Rxf4 $11 {[%emt 0:07:26] The position is equal.} 26. d8=Q+ {[%emt 0:00:08]} (26. d8=B Qxf3+ (26... Qxh2+ $2 27. Ke3 $19) 27. Ke1 Qf1+ (27... Re4+ $2 28. Kd2 $19) 28. Kd2 Rf2+ 29. Ke3 Qe2+ (29... Re2+ $2 30. Kd3 $19) 30. Kd4 Qg4+ (30... Qxc2 $2 31. Qe6+ Rf7 32. Bg5 $19) 31. Qe4 Rxd8+ 32. Kc5 Qxe4 33. Re1 Qd5+ (33... Qxc2 {leads to mate.} 34. Kb6 Rf7 35. Kc5 Rd5+ 36. Kb4 Rb5+ 37. Kc4 Rf4+ 38. Re4 Rxe4#) 34. Kb4 Rxc2) 26... Rxd8 {[%emt 0:00:02]} 27. Qxd8+ {[%emt 0:00:02]} Rf8 {[%emt 0:00:01]} 28. Qd3 {[%emt 0:00:45] And now Kg2 would win.} Qxh2+ {[%emt 0:00:04]} 29. Kf1 {[%emt 0:00:04]} Qh1+ {[%emt 0:01:01]} 30. Kf2 {[%emt 0:02:29]} Qh2+ {[%emt 0:00:34]} 31. Kf1 {[%emt 0:00:02]} Qh1+ {[%emt 0:01:46]} 32. Kf2 {[%emt 0:01:09] Weighted Error Value: White=0.31/Black=0.22 (precise) .  Mistake:       	White=4     	Black=2      Inaccurate:     	White=1     	Black=2      OK:         	White=3     	Black=14     Best:        	White=1     	Black=3} 1/2-1/2

[Event "15th Chennai GM Open 2025"]
[Site "Chennai"]
[Date "2025.01.05"]
[Round "5.7"]
[White "Madhvendra Pratap Sharma"]
[Black "Rios Gomez, Cristhian Camilo"]
[Result "1/2-1/2"]
[ECO "B30"]
[WhiteElo "2281"]
[BlackElo "2435"]
[Annotator "TA"]
[PlyCount "76"]
[EventDate "2025.01.02"]
[EventType "swiss"]
[EventCountry "IND"]
[SourceTitle "playchess.com"]
[Source "ChessBase"]
[SourceQuality "1"]
[TimeControl "5400+30"]

{[%evp 13,76,31,10,21,22,18,53,61,72,56,60,52,49,8,32,23,41,22,33,28,35,37,25,31,29,25,35,41,33,30,20,25,47,4,21,20,20,25,41,29,26,27,28,28,35,8,13,3,6,0,6,8,11,3,0,0,0,0,0,0,0,0,0,0,0]} 1. e4 {[%emt 0:00:29]} c5 {[%emt 0:04:48]} 2. Nf3 {[%emt 0:00:05]} Nc6 {[%emt 0:00:10]} 3. Bb5 {[%emt 0:00:10]} e6 {[%emt 0:00:09]} 4. O-O {[%emt 0:00:10]} Nge7 {[%emt 0:00:16]} 5. Re1 {[%emt 0:00:09]} Nd4 {[%emt 0:00:26]} 6. Nxd4 {[%emt 0:01:00]} cxd4 {[%emt 0:00:08]} 7. c3 {[%emt 0:00:16]} a6 {[%emt 0:00:11]} 8. Bf1 {[%emt 0:00:05]} Nc6 {[%emt 0:00:09]} 9. b4 {[%emt 0:02:38] Against Bc5} dxc3 {[%emt 0:02:54]} 10. dxc3 {[%emt 0:00:13] White is slightly better.} Be7 {[%emt 0:01:24]} 11. Bf4 {[%emt 0:10:28] White is more active.} d6 {[%emt 0:05:31]} 12. Nd2 {[%emt 0:02:47]} O-O {[%emt 0:03:31]} 13. Qb3 {[%emt 0:17:25]} Rb8 {[%emt 0:08:48]} 14. a3 {[%emt 0:08:41]} b5 {[%emt 0:10:05]} 15. c4 {[%emt 0:05:52]} e5 {[%emt 0:05:53]} 16. Be3 {[%emt 0:00:22]} Bg5 {[%emt 0:00:09]} 17. Bxg5 {[%emt 0:15:56]} Qxg5 {[%emt 0:00:09]} 18. Qe3 {[%emt 0:00:11]} Qe7 {[%emt 0:03:46]} 19. Rac1 {[%emt 0:06:46][%cal Ba1c1,Bc1c3,Bc3c4][%mdl 32] [#] Hoping for cxb5.} Nd4 {[%emt 0:05:52]} 20. Nb3 {[%emt 0:00:00]} Nxb3 {[%emt 0:05:53]} 21. Qxb3 {[%emt 0:00:00]} Be6 {[%emt 0:00:10]} 22. Qe3 {[%emt 0:07:10]} Qb7 {[%emt 0:05:20]} 23. Rc3 {[%emt 0:07:04]} bxc4 {[%emt 0:01:21]} 24. Bxc4 {[%emt 0:00:34]} Bxc4 {[%emt 0:00:08]} 25. Rxc4 {[%emt 0:00:01]} Qb5 {[%emt 0:00:15]} 26. Rec1 {[%emt 0:00:49]} a5 {[%emt 0:00:10]} 27. h3 {[%emt 0:03:14]} axb4 {[%emt 0:00:25]} 28. Rxb4 {[%emt 0:01:07]} Qa5 {[%emt 0:01:54]} 29. Rxb8 {[%emt 0:01:41]} Rxb8 $14 {[%emt 0:00:06][%mdl 4096] Endgame. KQR-KQR. The position is equal.} 30. Qb3 {[%emt 0:03:21]} Ra8 {[%emt 0:02:29]} 31. Qb7 {[%emt 0:01:28] [#] Rc8+ would kill now.} Rf8 {[%emt 0:00:17]} 32. Qb4 {[%emt 0:00:30]} Qxb4 {[%emt 0:00:17]} 33. axb4 $11 {[%emt 0:00:01] KR-KR} Rb8 {[%emt 0:00:08]} 34. Rb1 {[%emt 0:00:48]} f6 {[%emt 0:00:33]} 35. Kf1 {[%emt 0:00:34]} Kf7 {[%emt 0:00:05]} 36. Ke2 {[%emt 0:00:15]} Ke6 {[%emt 0:00:06]} 37. Kd3 {[%emt 0:00:29]} d5 {[%emt 0:00:06]} 38. exd5+ {[%emt 0:01:26]} Kxd5 {[%emt 0:00:08] Weighted Error Value: White=0.08 (flawless) /Black=0.06 (flawless) .  Inaccurate:     	White=3     	Black=1      OK:         	White=7     	Black=16     Best:        	---       	Black=1} 1/2-1/2

[Event "15th Chennai GM Open 2025"]
[Site "Chennai"]
[Date "2025.01.05"]
[Round "5.8"]
[White "Dhananjay S"]
[Black "Deepan Chakkravarthy J."]
[Result "0-1"]
[ECO "A14"]
[WhiteElo "2270"]
[BlackElo "2413"]
[Annotator "TA"]
[PlyCount "58"]
[EventDate "2025.01.02"]
[EventType "swiss"]
[EventCountry "IND"]
[SourceTitle "playchess.com"]
[Source "ChessBase"]
[SourceQuality "1"]
[TimeControl "5400+30"]

{[%evp 16,58,10,14,11,12,15,10,41,21,13,21,19,0,2,14,6,16,18,-16,35,17,4,-114,-117,-106,-120,-120,-111,-88,-91,-107,-103,-164,-164,-152,-156,-156,-126,-891,-864,-1756,-1713,-1732,-1731]} 1. Nf3 {[%emt 0:03:23]} d5 {[%emt 0:01:20]} 2. g3 {[%emt 0:00:58]} Nf6 {[%emt 0:03:13]} 3. Bg2 {[%emt 0:00:24]} e6 {[%emt 0:02:33]} 4. O-O {[%emt 0:00:30]} Be7 {[%emt 0:03:04]} 5. c4 {[%emt 0:00:24]} O-O {[%emt 0:00:07]} 6. b3 {[%emt 0:01:14]} b6 {[%emt 0:01:34]} 7. Bb2 {[%emt 0:04:52]} Bb7 {[%emt 0:00:08]} 8. e3 {[%emt 0:02:48]} Nbd7 {[%emt 0:00:21]} 9. Nc3 {[%emt 0:01:08]} Re8 {[%emt 0:01:54]} 10. d3 {[%emt 0:03:40]} c5 {[%emt 0:03:36]} 11. Qe2 {[%emt 0:01:56]} Rc8 {[%emt 0:08:30] The position is equal.} 12. Ne1 {[%emt 0:01:11]} Nb8 {[%emt 0:09:48]} 13. f4 {[%emt 0:00:37]} h6 {[%emt 0:12:00]} 14. g4 {[%emt 0:01:15] Threatens to win with g5.} Nh7 {[%emt 0:00:02]} 15. Rd1 {[%emt 0:02:11]} Bf6 {[%emt 0:02:29]} 16. Nf3 {[%emt 0:02:18]} Nc6 {[%emt 0:03:11] Wards off Ne5} 17. h3 {[%emt 0:04:36]} a6 {[%emt 0:05:52]} ({Black should play} 17... Nf8 $11) 18. Qf2 {[%emt 0:01:39]} d4 {[%emt 0:00:39]} (18... Rc7 {simplifies} 19. d4 cxd4 20. exd4 dxc4 21. d5 exd5 22. Nxd5 Rd7) 19. Ne4 {[%emt 0:00:52]} (19. exd4 $11 Nxd4 20. Ne4) 19... dxe3 $17 {[%emt 0:00:04]} 20. Nxf6+ {[%emt 0:42:24] [#]} Qxf6 $1 {[%emt 0:00:10][%mdl 512]} 21. Qc2 {[%emt 0:05:36]} Qxf4 {[%emt 0:22:57] Strongly threatening ...Qg3.} 22. Ne5 {[%emt 0:00:22]} Qg3 {[%emt 0:01:55]} 23. Rf3 {[%emt 0:00:24]} Qh4 {[%emt 0:03:20]} 24. Rxf7 {[%emt 0:01:08] [#]} (24. Rxe3 $17 {was worth a try.} Qe7 25. Nxc6 Bxc6 26. Bxc6 Rxc6 27. Qh2) 24... Nd4 $1 $19 {[%emt 0:01:57]} 25. Bxd4 {[%emt 0:01:41]} cxd4 {[%emt 0:00:02]} ({Wrong is} 25... Bxg2 $2 26. Ng6 (26. Bxe3 Qxh3 27. Bc1 Ng5 $11) 26... cxd4 27. Nxh4 $18) 26. Rxb7 {[%emt 0:06:42][%cal Od1f1] Hoping for Rf1!} Qg3 {[%emt 0:00:01] Dancing on a razor blade.} 27. Nf3 $2 {[%emt 0:04:09][%mdl 8192] [#]} (27. Ng6 $17 Nf8 (27... Ng5 28. Rf1 $17) 28. Ne7+ Rxe7 29. Rxe7) 27... Rf8 $1 {[%emt 0:00:05] Black is clearly winning.} 28. Qb2 {[%emt 0:01:46]} Rxf3 {[%emt 0:04:52]} 29. Qxd4 {[%emt 0:00:11]} Nf6 {[%emt 0:00:06] Weighted Error Value: White=0.75/Black=0.06 (flawless) .  Loses game:     	White=1     	---        Mistake:       	White=2     	Black=1      Inaccurate:     	White=2     	Black=1      OK:         	White=7     	Black=7      Best:        	White=2     	Black=2      Strong:       	---       	Black=2      Brilliant:      	---       	Black=1} 0-1

[Event "15th Chennai GM Open 2025"]
[Site "Chennai"]
[Date "2025.01.05"]
[Round "5.9"]
[White "Arpith S Bijoy"]
[Black "Sathvik Adiga"]
[Result "0-1"]
[ECO "A01"]
[WhiteElo "2234"]
[BlackElo "2395"]
[Annotator "TA"]
[PlyCount "128"]
[EventDate "2025.01.02"]
[EventType "swiss"]
[EventCountry "IND"]
[SourceTitle "playchess.com"]
[Source "ChessBase"]
[SourceQuality "1"]
[TimeControl "5400+30"]

{[%evp 9,128,-9,-2,-37,-31,-31,-25,-29,12,16,47,21,130,32,44,8,35,36,37,0,46,31,52,46,40,27,44,60,54,26,133,100,106,110,104,104,100,111,118,130,116,100,103,94,102,95,75,42,105,63,71,50,54,0,0,0,0,0,0,0,0,0,0,5,5,-20,-30,-20,-24,-94,-67,-70,-80,-66,-28,-93,-12,-16,0,-29,-20,-85,-91,-145,-146,-214,-214,-214,-204,-332,-325,-322,-319,-308,-293,-300,-281,-291,-284,-487,-488,-418,-311,-6079,-5585,-5173,-4132,-29950,-298,-277,0,-29968,-29972,-29993,-29994,-29994,-29995,-29995,-29996,-29997,-29998]} 1. b3 {[%emt 0:00:04]} e5 {[%emt 0:00:06]} 2. Bb2 {[%emt 0:00:07]} Nc6 {[%emt 0:00:02]} 3. c4 {[%emt 0:00:39]} d5 {[%emt 0:02:33]} 4. cxd5 {[%emt 0:00:24]} Qxd5 {[%emt 0:00:06]} 5. Nc3 {[%emt 0:01:01]} Qe6 {[%emt 0:00:08]} 6. g3 {[%emt 0:03:04]} Bd7 $1 {[%emt 0:04:05]} 7. Bg2 {[%emt 0:00:29]} O-O-O {[%emt 0:00:35]} 8. Nf3 {[%emt 0:00:50] Black has an edge.} Nge7 {[%emt 0:15:47][%cal Bg8e7,Be7d5,Bd5b4][%mdl 32]} 9. Rc1 {[%emt 0:00:28]} f5 {[%emt 0:01:01]} 10. O-O {[%emt 0:03:30]} h6 {[%emt 0:04:24]} (10... e4 $11 11. Ng5 Qg6) 11. Na4 {[%emt 0:02:57]} (11. e4 $16) 11... e4 $1 $14 {[%emt 0:03:01]} 12. Ne1 {[%emt 0:10:04]} Be8 {[%emt 0:08:54]} 13. d3 {[%emt 0:05:58]} Nd5 {[%emt 0:05:50]} 14. Nc5 {[%emt 0:08:07]} Qf7 {[%emt 0:06:38]} (14... Bxc5 $11 {should be considered.} 15. Rxc5 b6) 15. Qc2 {[%emt 0:04:35]} (15. dxe4 Nf4 (15... Ne3 16. Qxd8+ Nxd8 17. fxe3 $11) 16. Ned3 (16. Qc2 $2 Nb4 $19) 16... Nxg2 $15) 15... Ndb4 {[%emt 0:09:38]} 16. Qb1 {[%emt 0:00:54]} b6 {[%emt 0:02:40]} 17. Na4 {[%emt 0:00:56]} (17. a3 $5 Bxc5 (17... bxc5 18. axb4 Nxb4 19. Qa1 $11) 18. axb4 Nxb4 19. Qa1 $11) 17... exd3 {[%emt 0:00:51]} 18. Nxd3 {[%emt 0:00:24]} Nxd3 {[%emt 0:00:30]} 19. exd3 {[%emt 0:00:04][%cal Be2d3,Bd3d4,Bd4d5][%mdl 32]} Nd4 {[%emt 0:02:10]} (19... Nb4 $1 $11) 20. Bxd4 {[%emt 0:02:28]} Rxd4 {[%emt 0:00:02] [#]} 21. Qb2 $1 {[%emt 0:00:17]} Qf6 {[%emt 0:14:49][%cal Oc8b8]} 22. Nc3 {[%emt 0:04:26][%cal Ba4c3,Bc3b5,Bb5d4,Bd4c6,Bc6a5][%mdl 32]} Rd8 {[%emt 0:01:05][%cal Oc8b8] [#]} (22... Rxd3 $2 23. Qe2 Qd8 24. Rcd1 (24. Nd5 Rxd5 25. Bxd5 Qxd5 $18) 24... Rxd1 25. Rxd1 $18 (25. Qa6+ Kd7 $18)) 23. d4 $1 {[%emt 0:01:46]} Bc6 {[%emt 0:02:11]} 24. Bxc6 {[%emt 0:00:04]} Qxc6 {[%emt 0:00:07]} 25. d5 {[%emt 0:00:03]} Qd7 {[%emt 0:04:18]} 26. Qe2 {[%emt 0:00:55]} Kb7 {[%emt 0:00:06] Inhibits Qa6+.} 27. Nb5 {[%emt 0:00:22] Prevents Ba3.} Rc8 {[%emt 0:01:29][%cal Oh6h5]} 28. Rfd1 {[%emt 0:02:25]} a6 {[%emt 0:04:15]} (28... Bc5 $14) 29. Nd4 {[%emt 0:10:28]} Qxd5 {[%emt 0:01:50]} 30. Nc6 {[%emt 0:00:27]} Qe4 {[%emt 0:00:21]} 31. Qf1 {[%emt 0:01:14]} (31. Nd8+ $14 Kb8 32. Qxa6) 31... Bc5 $11 {[%emt 0:01:18]} 32. Na5+ {[%emt 0:00:30]} Ka7 $1 {[%emt 0:00:39][%cal Oh8e8]} 33. b4 {[%emt 0:00:13] aiming for Re1.} Rhd8 {[%emt 0:01:06]} (33... Bxb4 $2 34. Nc6+ (34. Rc4 Bxa5 35. Rxe4 fxe4 $14) 34... Kb7 35. Rd4 Qxc6 36. Rxc6 (36. Rxb4 $2 Qe6 $19) 36... Kxc6 37. Qc4+ (37. Rxb4 Kb7 $18) 37... Kb7 38. Qxb4 $18) 34. Re1 {[%emt 0:00:26]} Qd5 {[%emt 0:01:46]} (34... Qxb4 35. Nc6+ Kb7 36. Qg2 $18 (36. Nxb4 Bxb4 37. Red1 Bd6 $18) (36. Nxd8+ Rxd8 37. Qg2+ c6 $11)) 35. Re5 {[%emt 0:00:26]} Qf3 {[%emt 0:00:04]} (35... Bxf2+ $2 36. Qxf2 Qd3 37. Nc6+ (37. Rxf5 Rd7 $18) 37... Ka8 38. Nxd8 (38. Qxf5 Qxf5 39. Rxf5 Rf8 $18) 38... Qxd8 39. Rxf5 $18) 36. bxc5 {[%emt 0:00:34]} bxa5 {[%emt 0:00:02]} 37. Re3 {[%emt 0:00:27]} (37. c6 {simplifies} Rd6 38. Rxa5 Rxc6 39. Rxf5 Rxc1 40. Rxf3 Rxf1+ 41. Kxf1 Kb6 42. Ke2) 37... Qc6 {[%emt 0:00:44]} 38. Qe1 {[%emt 0:00:40]} Re8 {[%emt 0:00:28] Prevents Re6} 39. Re7 {[%emt 0:00:20]} (39. Qxa5 Rxe3 40. fxe3 Rd8 $17) (39. Rxe8 $1 $11 {keeps the balance.} Rxe8 40. Qxa5) 39... g5 {[%emt 0:00:45]} 40. Rxe8 {[%emt 0:01:40]} Rxe8 {[%emt 0:00:05]} 41. Qxa5 $15 {[%emt 0:00:05][%mdl 4096] Endgame. KQR-KQR} f4 {[%emt 0:00:28]} 42. Qb4 {[%emt 0:00:34]} (42. Qd2 $11) 42... Qe4 {[%emt 0:00:51]} (42... h5 $17 43. Qb3 f3) 43. Qb2 {[%emt 0:00:34]} (43. Qc3 {simplifies} Qd5 44. c6 Qe5 45. Qxe5 Rxe5 46. gxf4 gxf4 47. Kg2) 43... Qc6 {[%emt 0:00:16]} (43... fxg3 {simplifies} 44. hxg3 Qe5 45. Qa3 h5) 44. Qg7 {[%emt 0:00:40]} Re2 {[%emt 0:01:09]} 45. Qf8 {[%emt 0:00:37]} (45. a3 $11) 45... h5 $17 {[%emt 0:00:35] White must now prevent ...h4. Black is more active.} (45... Rxa2 $6 46. Rb1 a5 47. Qb8+ Ka6 48. Qc8+ Ka7 49. gxf4 $11 (49. Qb8+ Ka6 $11)) 46. Qc8 {[%emt 0:07:46]} ({White should play} 46. Rb1 Re8 47. Qf7) 46... h4 $40 {[%emt 0:01:30][%mdl 128] White is in trouble.} (46... Rxa2 $6 47. Rb1 (47. Qg8 Rd2 $11) 47... a5 48. Qg8 $11 (48. Qb8+ Ka6 $11)) 47. Qh3 {[%emt 0:03:50]} (47. Rb1 $17 Re8 (47... Qxc5 48. Qb8#) 48. Qh3) 47... hxg3 $19 {[%emt 0:00:31]} (47... Rxa2 48. gxh4 gxh4 49. Qxh4 $17) 48. hxg3 {[%emt 0:00:06]} Rxa2 {[%emt 0:00:57]} 49. Qg4 {[%emt 0:00:21]} (49. Qg2 $142 Qxg2+ 50. Kxg2) 49... fxg3 {[%emt 0:00:21]} 50. Qxg3 {[%emt 0:00:06]} Ra4 {[%emt 0:00:29]} 51. Qg2 {[%emt 0:01:16]} Qe6 {[%emt 0:00:28]} 52. Kf1 {[%emt 0:00:45]} Re4 {[%emt 0:00:50] Prevents Re1.} 53. Qg3 {[%emt 0:00:30]} Qc6 {[%emt 0:00:32]} 54. Qg2 $2 {[%emt 0:04:30]} (54. Rc3 {might work better.}) 54... Qb5+ {[%emt 0:00:40]} 55. Kg1 {[%emt 0:00:15]} Qb4 {[%emt 0:00:14] Hoping for ...Rg4.} 56. Qf3 {[%emt 0:01:27]} (56. Kf1) 56... Rg4+ {[%emt 0:00:40]} 57. Kh2 {[%emt 0:00:13]} Qd4 {[%emt 0:00:21] ( -> ...Qe5+)} 58. Kh3 {[%emt 0:03:25]} Rh4+ $2 {[%emt 0:01:11]} (58... Rf4 {mates} 59. Qxf4 gxf4 (59... Qxf4 $2 60. Rf1 $19) 60. Kg2 Qd5+ 61. Kh2 Qh5+ 62. Kg2 f3+ 63. Kg3 Qg5+ 64. Kxf3 Qxc1 65. Ke4 a5 (65... Qxc5 66. f4 a5 67. f5 a4 68. f6 a3 69. f7 a2 70. f8=B Qxf8 71. Kd3 Qf5+ 72. Ke2 a1=Q 73. Kd2 Qf3 74. Kc2 Qfd1#) 66. f4 a4 (66... Qxc5 67. f5 a4 68. f6 a3 69. f7 a2 70. f8=B Qxf8 71. Ke3 a1=Q 72. Kd3 Qd1+ 73. Kc4 Qc2+ 74. Kd5 Qd6#) 67. f5 a3 (67... Qxc5 68. f6 a3 69. f7 a2 70. f8=B Qxf8 71. Ke3 a1=Q 72. Kd3 Qf5+ 73. Ke3 Qc1+ 74. Ke2 Qff1#) 68. f6 a2 (68... Qxc5 69. f7 a2 70. f8=B Qxf8 71. Kd5 a1=Q 72. Ke6 Qff6+ 73. Kd7 Qd1+ 74. Kxc7 Qdd8#) 69. f7 Qc4+ (69... a1=B $2 70. f8=Q $19) 70. Kf3 a1=Q (70... a1=B 71. f8=Q Qf1+ 72. Ke3 Qxf8 73. Ke4 Qxc5 74. Kf4 Qe5+ 75. Kf3 Bd4 76. Kg4 Qe4+ 77. Kg5 Ba1 78. Kh5 Bf6 79. Kh6 Qg2 80. Kh7 Qg7#) (70... Qxf7+ 71. Kg4 a1=Q 72. Kh4 Qg6 73. Kh3 Qh8#) 71. f8=Q Qaf1+ 72. Kg3 Qg1+ 73. Kh3 Qcg4#) 59. Kg2 {[%emt 0:00:06]} Rg4+ $2 {[%emt 0:00:26]} (59... a5 $19 60. Rd1 Rg4+ (60... Qxc5 61. Rd8 $11) 61. Kf1 Qc4+ 62. Qd3 Ka6 (62... Qxc5 $2 63. Rd2 $19)) 60. Kh3 {[%emt 0:00:02]} Rf4 {[%emt 0:00:27] Black mates.} 61. Qc6 {[%emt 0:00:08]} g4+ {[%emt 0:00:10]} (61... Qxf2 62. Qxc7+ Ka8 63. Qd8+ Ka7 64. Qb6+ (64. Qxg5 Rf3+ 65. Kg4 Rg3+ 66. Kh5 Qe2+ 67. Kh6 Qe6+ 68. Kh5 Rh3+) 64... Ka8 65. Qxa6+ Kb8 66. Rb1+) 62. Kh4 {[%emt 0:00:16] [#]} g3+ $1 {[%emt 0:00:20][%mdl 512]} 63. Kh5 {[%emt 0:00:40]} (63. Kg5 Qe5+) 63... Qe5+ {[%emt 0:00:08]} ({Stronger than} 63... Qxf2 64. Qxc7+ Ka8 65. Qd8+ Ka7 66. Qb6+ Ka8 67. Qxa6+ Kb8 68. Rb1+) 64. Kg6 {[%emt 0:00:16]} Rg4+ {[%emt 0:00:13] Weighted Error Value: White=0.41/Black=0.33.  Mistake:       	White=10    	Black=5      Inaccurate:     	White=7     	Black=4      OK:         	White=13    	Black=25     Best:        	White=5     	Black=6      Strong:       	White=1     	Black=3} 0-1